bitfinex/quotes_ETHUSD_20260130
["timestamp","ask_amount","ask_price","bid_price","bid_amount"]
[1769740935812,13.97964476,2743.7,2742.0,0.002]
[1769740936012,13.99075937,2743.2,2742.0,0.002]
[1769740936352,13.97964476,2742.8,2742.0,0.002]
[1769740936528,13.97964476,2742.6,2741.8,0.002]
[1769740936722,1.39796448,2742.5,2741.8,0.002]
[1769740937037,0.763,2742.5,2741.8,0.91380019]
[1769740937347,0.763,2743.1,2741.8,0.91380019]
[1769740937516,1.39806448,2744.4,2742.5,0.01111461]
[1769740937715,14.89059658,2744.4,2742.0,0.01111461]
[1769740937942,13.97964476,2744.4,2742.6,14.5]
[1769740938673,13.97964476,2743.7,2741.8,0.002]
[1769740938945,13.97964476,2743.5,2741.8,0.002]
[1769740939748,0.763,2743.4,2741.8,0.002]
[1769740940218,14.89089442,2743.5,2741.8,0.002]
[1769740940419,0.763,2743.4,2741.8,0.002]
[1769740940621,15.5450342,2743.3,2741.9,1.4502]
[1769740941113,15.5450342,2743.3,2741.8,0.002]
[1769740941313,13.97964476,2743.0,2741.8,0.002]
[1769740941714,13.97964476,2743.0,2741.3,0.24518061]
[1769740941715,13.97964476,2742.8,2741.3,0.24518061]
[1769740941944,13.97964476,2742.8,2741.3,0.91197294]
[1769740942121,1.48910888,2742.7,2741.4,0.91194208]
[1769740942322,0.763,2742.6,2741.4,0.91194208]
[1769740942536,0.763,2742.6,2741.4,0.91194013]
[1769740942832,0.763,2742.6,2741.3,0.91195665]
[1769740943152,14.74264476,2742.6,2741.4,14.5]
[1769740943330,15.45390924,2742.5,2741.4,14.5]
[1769740943856,15.45390924,2742.5,2741.4,15.4119321]
[1769740944229,15.45390924,2742.5,2741.2,3.65001075]
[1769740944622,15.45390924,2742.5,2741.3,15.41195367]
[1769740945078,15.45390924,2742.5,2741.5,0.002]
[1769740945574,14.920807,2742.4,2741.5,0.002]
[1769740946226,13.29911608,2742.2,2741.3,0.002]
[1769740948444,14.21081874,2742.2,2741.3,0.002]
[1769740949079,13.29911608,2742.2,2741.3,0.002]
[1769740949366,13.29911608,2742.7,2741.3,0.002]
[1769740949540,0.764,2742.2,2741.3,0.002]
[1769740951345,14.72017536,2742.7,2741.3,0.002]
[1769740951558,0.764,2742.2,2741.3,0.002]
[1769740952643,14.72017536,2742.7,2741.3,0.002]
[1769740952839,0.764,2742.2,2741.3,0.002]
[1769740956072,15.26836195,2742.2,2741.3,0.002]
[1769740957361,15.26836195,2742.2,2741.5,0.002]
[1769740957563,16.18006564,2742.2,2741.5,0.002]
[1769740958677,16.18006564,2742.2,2741.3,0.002]
[1769740960568,15.41606564,2742.2,2741.3,0.002]
[1769740960783,0.001,2742.4,2741.3,0.002]
[1769740960941,0.765,2742.4,2741.3,0.002]
[1769740962075,0.001,2742.4,2741.3,0.002]
[1769740962442,13.94609201,2742.4,2741.3,0.002]
[1769740962646,13.9451309,2742.2,2741.3,0.002]
[1769740962869,13.03345415,2742.1,2741.3,0.002]
[1769740964874,0.91174325,2742.0,2741.3,0.002]
[1769740965245,13.03345415,2741.8,2740.7,0.002]
[1769740965651,0.764,2741.7,2740.7,0.002]
[1769740965846,0.91167675,2742.2,2740.7,0.002]
[1769740966054,2.66264459,2742.1,2740.7,0.002]
[1769740966247,15.69609874,2742.1,2740.7,0.002]
[1769740967350,13.03345415,2741.9,2740.7,0.002]
[1769740967579,13.03345415,2741.2,2740.2,0.002]
[1769740967888,1.30445688,2741.1,2740.2,0.002]
[1769740968985,14.33791103,2741.1,2740.2,0.002]
[1769740969485,13.94553003,2741.0,2740.2,0.002]
[1769740969782,13.94553003,2741.0,2740.4,0.002]
[1769740970170,0.764,2740.9,2740.4,0.002]
[1769740970479,0.764,2740.8,2740.4,0.002]
[1769740970853,14.41319957,2740.8,2740.2,0.002]
[1769740971075,0.764,2740.7,2740.2,0.002]
[1769740971257,1.67618906,2740.7,2740.2,0.002]
[1769740972377,0.764,2740.7,2740.2,0.002]
[1769740973713,14.70965334,2740.7,2739.2,0.91267523]
[1769740973856,14.50441604,2740.6,2739.2,0.91267523]
[1769740974053,14.50441604,2740.6,2739.1,1.16577439]
[1769740974456,0.764,2740.5,2739.1,1.16577439]
[1769740974653,13.79745415,2740.5,2739.1,1.16577439]
[1769740974979,1.5268416,2740.4,2739.2,0.48166086]
[1769740975176,0.764,2740.5,2739.2,0.48166086]
[1769740975383,0.764,2740.5,2739.3,0.91264191]
[1769740976325,1.82640225,2743.1,2739.3,0.91264191]
[1769740976326,0.95238095,2741.4,2739.4,10.79466368]
[1769740976602,0.764,2741.3,2739.6,10.79466368]
[1769740976803,0.764,2741.3,2739.9,10.78354907]
[1769740977372,0.764,2741.3,2740.0,0.91240875]
[1769740977572,0.764,2741.3,2740.1,1.53455928]
[1769740979008,0.764,2741.3,2740.0,0.91240875]
[1769740979191,14.23027003,2741.3,2740.0,0.91240875]
[1769740979507,0.764,2741.3,2739.8,3.64963503]
[1769740979877,0.764,2741.3,2739.8,3.66074964]
[1769740980072,0.764,2741.3,2739.8,3.64963503]
[1769740980280,0.764,2741.3,2739.9,0.72992701]
[1769740980478,0.91275002,2742.0,2740.2,0.01111461]
[1769740980781,0.001,2742.0,2740.2,0.01111461]
[1769740980982,0.764,2741.9,2740.1,10.78354907]
[1769740981183,14.23027003,2741.9,2740.2,1.07946637]
[1769740981394,14.23027003,2741.9,2739.9,0.72992701]
[1769740981395,13.46627003,2741.7,2740.0,0.91240875]
[1769740981600,12.36627003,2741.7,2740.0,0.92352336]
[1769740982146,12.36627003,2741.7,2740.0,0.91440875]
[1769740982425,0.001,2741.1,2740.0,0.91440875]
[1769740985433,0.001,2741.1,2740.0,0.002]
[1769740985613,13.46727003,2741.1,2740.0,0.002]
[1769740985925,13.46627003,2740.8,2739.1,0.25308926]
[1769740987202,13.46627003,2740.6,2739.1,0.25308926]
[1769740987404,13.46627003,2740.5,2739.1,0.25308926]
[1769740987607,13.46627003,2740.3,2739.1,0.25308926]
[1769740987801,13.46627003,2740.1,2739.1,0.002]
[1769740987997,0.764,2740.0,2739.1,0.002]
[1769740990544,0.91214244,2740.8,2739.1,0.002]
[1769740990700,14.81299703,2741.0,2739.1,0.002]
[1769740990701,0.764,2740.7,2739.1,0.002]
[1769740991334,14.23027003,2740.7,2739.1,0.002]
[1769740991830,0.912209,2740.6,2739.1,0.002]
[1769740992033,15.14246018,2740.7,2739.1,0.002]
[1769740992336,15.34538477,2740.6,2739.1,0.002]
[1769740992834,15.34538477,2740.6,2739.1,3.812]
[1769740994350,1.87911474,2740.6,2739.3,0.002]
[1769740994510,1.67617651,2740.7,2739.3,0.002]
[1769740994843,1.67617651,2740.7,2739.3,14.502]
[1769740995343,0.001,2740.5,2739.3,14.502]
[1769740995543,3.849,2741.2,2739.3,14.502]
[1769740995544,13.46627003,2741.4,2739.5,11.88754907]
[1769740995761,11.01579781,2742.6,2739.4,3.82111461]
[1769740995762,0.001,2742.0,2741.0,0.01111461]
[1769740996044,0.001,2742.4,2740.9,0.01111461]
[1769740996251,0.001,2742.4,2741.3,0.91197606]
[1769740996432,0.001,2742.4,2741.4,0.45710547]
[1769740997016,0.001,2742.4,2741.4,0.46822008]
[1769740997218,0.001,2742.4,2741.4,0.45710547]
[1769740997425,0.001,2742.4,2741.2,0.92311286]
[1769740997840,0.001,2742.4,2741.1,15.41202328]
[1769740998037,13.46727003,2742.4,2741.1,14.5]
[1769740998267,13.46727003,2742.4,2741.1,15.41204192]
[1769740998432,13.46727003,2742.4,2740.9,3.64843306]
[1769740998433,13.46627003,2742.2,2740.7,0.91217332]
[1769740998900,13.46627003,2742.2,2740.2,0.91231278]
[1769740999182,13.46627003,2742.2,2740.1,0.01111461]
[1769740999183,13.46627003,2742.2,2740.1,0.91237407]
[1769740999479,13.46627003,2742.2,2740.4,0.92337428]
[1769740999680,13.46627003,2742.0,2740.4,0.91225778]
[1769740999838,13.46627003,2742.0,2740.4,0.92337239]
[1769741000377,13.46627003,2741.8,2740.4,0.92337239]
[1769741000878,2.5170153,2742.1,2740.5,0.01111461]
[1769741000879,3.42873294,2742.1,2740.5,0.01111461]
[1769741001061,4.19273368,2742.1,2740.7,0.01111461]
[1769741001261,0.41927337,2742.0,2740.8,14.51111461]
[1769741001461,0.764,2742.1,2741.0,0.01111461]
[1769741001643,14.23027003,2742.1,2740.8,14.5]
[1769741001847,15.14198085,2742.1,2740.4,0.92337239]
[1769741002054,15.14198085,2742.1,2740.4,0.91225778]
[1769741002255,13.46627003,2741.9,2740.5,0.45613601]
[1769741002549,13.46627003,2741.9,2740.7,0.91217572]
[1769741002894,14.37805559,2741.9,2740.6,14.5]
[1769741003841,1.87886937,2742.0,2741.1,0.01111461]
[1769741004044,0.764,2742.1,2741.2,0.01111461]
[1769741004352,0.764,2742.1,2741.1,3.64815087]
[1769741004560,0.764,2742.1,2741.1,0.91202501]
[1769741004977,0.764,2742.1,2740.9,0.91208775]
[1769741005460,14.44110178,2742.1,2740.9,1.36926556]
[1769741005669,14.44110178,2742.1,2741.0,0.91205232]
[1769741005861,14.44110178,2742.1,2740.9,0.91208811]
[1769741006084,14.44110178,2742.1,2740.5,0.46725062]
[1769741006085,13.67710178,2741.2,2740.3,0.91230367]
[1769741006368,3.65795462,2742.2,2739.6,5.22092765]
[1769741006369,0.764,2741.5,2740.5,0.91224229]
[1769741007265,0.764,2741.5,2740.7,0.002]
[1769741010178,14.44110178,2741.5,2740.7,0.002]
[1769741010377,0.764,2741.5,2740.7,0.002]
[1769741010756,15.88521196,2741.5,2740.7,0.002]
[1769741011498,3.86011461,2742.6,2740.7,0.002]
[1769741011654,14.58874529,2742.3,2740.8,0.01111461]
[1769741011854,15.35274529,2742.3,2740.8,0.01111461]
[1769741012654,3.64755132,2742.4,2740.7,0.002]
[1769741012655,14.44110178,2742.2,2740.7,0.002]
[1769741012859,1.44411018,2742.1,2740.7,1.19216637]
[1769741013093,13.67710178,2742.0,2740.7,0.002]
[1769741013281,2.35584635,2742.1,2740.5,0.002]
[1769741013282,13.67710178,2741.4,2740.5,0.002]
[1769741014798,13.67710178,2741.4,2739.8,15.41247093]
[1769741015106,13.42969198,2741.0,2739.8,16.40626236]
[1769741015293,13.42969198,2741.0,2739.8,1.90626236]
[1769741015497,13.42969198,2741.0,2739.8,0.91247325]
[1769741015682,13.42969198,2741.0,2739.7,0.91249282]
[1769741015886,13.42969198,2740.9,2739.8,0.9124656]
[1769741016072,13.42969198,2740.9,2739.9,0.01111461]
[1769741016267,0.01111461,2744.6,2740.3,0.01111461]
[1769741016268,13.42969198,2741.9,2740.3,0.01111461]
[1769741016476,0.764,2741.8,2740.5,0.01111461]
[1769741016706,0.764,2741.8,2740.7,0.01111461]
[1769741017278,0.764,2741.8,2740.7,0.92328133]
[1769741017578,0.764,2741.8,2740.7,0.91216672]
[1769741017880,3.18637451,2741.8,2740.6,0.91220142]
[1769741018084,16.61606649,2741.8,2740.5,0.91222465]
[1769741018407,16.61606649,2741.8,2740.2,3.64933383]
[1769741018703,15.70424018,2741.8,2740.6,0.91218807]
[1769741018908,16.61605133,2741.8,2740.7,0.9121751]
[1769741019109,0.84791488,2741.7,2740.7,0.45611426]
[1769741019610,0.001,2741.6,2740.8,0.01111461]
[1769741019809,0.001,2741.6,2740.7,1.368282]
[1769741020581,13.43069198,2741.6,2740.6,0.91220687]
[1769741021116,13.43069198,2741.6,2740.6,0.91220888]
[1769741021315,13.43069198,2741.6,2740.5,0.91222469]
[1769741021522,13.43069198,2741.6,2739.8,0.91247536]
[1769741021713,14.94134425,2741.6,2739.9,3.09640405]
[1769741022490,14.94134425,2741.6,2739.9,6.90640405]
[1769741023908,14.94134425,2741.6,2740.0,0.91240875]
[1769741024093,15.85322174,2741.6,2740.0,0.91240875]
[1769741024513,14.94134425,2741.6,2740.0,0.91240875]
[1769741024696,1.57053443,2741.5,2740.1,0.78546534]
[1769741025132,1.57053443,2741.5,2740.2,14.5]
[1769741025321,1.57053443,2741.5,2739.0,0.002]
[1769741025322,14.71969198,2741.4,2739.0,0.002]
[1769741025524,13.42969198,2740.0,2739.0,0.002]
[1769741025816,1.07566882,2740.1,2739.0,0.002]
[1769741025817,13.42969198,2740.5,2739.2,0.91267333]
[1769741026020,14.34196221,2740.5,2739.0,0.002]
[1769741026221,13.42969198,2740.5,2739.2,0.01459455]
[1769741026432,0.764,2740.4,2739.2,0.01459455]
[1769741026803,0.764,2740.4,2739.3,14.5]
[1769741027210,0.764,2740.4,2739.6,0.01459455]
[1769741027404,0.764,2740.4,2739.4,0.01459455]
[1769741028011,0.764,2740.4,2739.4,0.9126086]
[1769741028335,0.764,2740.4,2739.5,1.54126086]
[1769741029633,1.67628027,2740.4,2739.5,1.54126086]
[1769741029939,0.764,2740.4,2739.5,1.54126086]
[1769741030111,1.67628158,2740.4,2739.5,1.54126086]
[1769741030311,1.67627705,2740.4,2739.3,0.92722513]
[1769741030641,1.67627705,2740.4,2739.4,14.5]
[1769741030840,0.764,2740.4,2739.4,14.5]
[1769741031227,0.764,2740.4,2739.7,0.002]
[1769741031434,0.764,2740.4,2738.0,0.002]
[1769741031435,13.42969198,2739.3,2738.0,0.002]
[1769741031634,0.01459455,2739.9,2738.0,0.002]
[1769741031635,14.77266118,2739.2,2738.4,0.002]
[1769741031939,0.764,2739.1,2738.4,0.002]
[1769741032143,0.764,2739.1,2738.5,0.002]
[1769741032937,1.6767132,2739.1,2738.4,0.002]
[1769741033126,0.764,2739.1,2738.4,0.002]
[1769741033333,0.764,2739.1,2738.5,0.002]
[1769741033532,1.67670966,2739.1,2738.5,0.002]
[1769741033716,0.764,2739.1,2738.5,0.002]
[1769741033920,14.34221369,2739.7,2738.5,0.002]
[1769741034126,0.764,2739.6,2738.5,0.002]
[1769741034532,0.91257528,2739.5,2738.5,0.002]
[1769741034721,13.42969198,2739.5,2738.5,0.002]
[1769741036546,0.9126086,2739.4,2738.5,0.002]
[1769741036738,12.94292764,2739.3,2738.5,0.002]
[1769741037045,0.91259889,2739.5,2738.5,0.002]
[1769741037545,12.94292764,2740.3,2738.5,0.002]
[1769741037722,1.67634216,2740.2,2738.5,13.90518969]
[1769741037922,14.6192698,2740.2,2738.5,0.002]
[1769741038126,14.6192698,2740.2,2738.6,14.5]
[1769741038736,14.6192698,2740.2,2738.7,0.91284185]
[1769741039551,12.94292764,2739.8,2738.8,0.002]
[1769741039844,12.94292764,2739.8,2738.6,0.002]
[1769741040051,12.94292764,2739.8,2738.5,0.91290828]
[1769741040621,12.94292764,2739.8,2738.6,0.002]
[1769741042950,0.91250866,2739.7,2738.6,0.002]
[1769741043143,0.91250866,2739.7,2738.7,3.812]
[1769741043144,2.66305576,2739.7,2738.7,3.812]
[1769741043547,15.6059834,2739.7,2738.8,0.002]
[1769741043930,2.23233569,2740.6,2739.9,3.81]
[1769741044132,2.99733569,2740.6,2739.1,10.15]
[1769741044455,3.90954842,2740.6,2739.2,14.5]
[1769741044837,3.90954842,2740.6,2739.3,0.002]
[1769741045161,0.75583585,2740.5,2739.4,1.4502]
[1769741045652,13.85520322,2740.4,2739.5,0.002]
[1769741045863,0.765,2740.3,2739.3,0.91461573]
[1769741046577,0.765,2740.3,2739.4,0.91260852]
[1769741048172,0.765,2740.3,2739.5,0.002]
[1769741048332,0.765,2740.3,2739.2,0.91467523]
[1769741048665,0.765,2740.3,2739.3,2.28753762]
[1769741049270,0.765,2740.3,2739.4,3.81]
[1769741049627,0.765,2740.2,2739.4,3.81]
[1769741049826,0.765,2740.2,2739.5,0.002]
[1769741050428,0.765,2740.2,2739.5,0.91457528]
[1769741051035,0.765,2740.2,2739.5,0.002]
[1769741051239,0.765,2740.2,2738.5,0.002]
[1769741051240,12.94292764,2739.8,2738.5,0.002]
[1769741051470,1.29429276,2739.7,2738.6,0.91284804]
[1769741051871,1.29429276,2739.7,2738.6,0.91287069]
[1769741052491,0.91254197,2739.6,2738.5,0.002]
[1769741054400,0.765,2739.5,2738.5,0.002]
[1769741054606,1.67759636,2739.5,2738.5,0.002]
[1769741055860,1.67759636,2739.5,2738.9,0.002]
[1769741056064,0.53277658,2739.4,2738.9,0.002]
[1769741056809,1.44539926,2739.4,2738.9,0.002]
[1769741058323,12.94292764,2739.7,2738.9,0.002]
[1769741058324,12.94392764,2740.1,2738.9,0.002]
[1769741058614,1.67740875,2740.0,2738.9,0.002]
[1769741062078,0.001,2740.1,2738.9,0.002]
[1769741062297,0.765,2740.0,2738.9,0.002]
[1769741062596,0.765,2740.0,2738.9,1.39271897]
[1769741064022,0.91244205,2739.9,2738.9,1.39271897]
[1769741064209,0.91244205,2739.9,2738.9,0.002]
[1769741064594,13.85536969,2739.9,2738.9,0.002]
[1769741065805,3.849,2739.8,2738.9,0.002]
[1769741065973,12.88662648,2739.7,2738.9,0.002]
[1769741066176,0.91254197,2739.6,2738.9,0.002]
[1769741066376,1.74493364,2739.5,2738.9,0.002]
[1769741068004,1.74493364,2739.5,2739.1,0.002]
[1769741068415,0.9126086,2739.4,2739.1,0.002]
[1769741068710,2.65753243,2739.5,2739.1,0.002]
[1769741070688,0.91255974,2739.6,2739.1,0.002]
[1769741071183,13.79918622,2739.6,2739.1,0.002]
[1769741072728,13.79918622,2739.6,2738.5,0.002]
[1769741072900,13.79918622,2739.6,2738.0,0.002]
[1769741072901,12.88662648,2739.1,2738.0,0.002]
[1769741073099,12.88662648,2738.9,2738.0,0.002]
[1769741073308,12.88662648,2738.8,2738.0,0.002]
[1769741073523,0.765,2738.7,2738.0,0.002]
[1769741074041,13.65162648,2738.7,2738.0,0.002]
[1769741074328,0.765,2738.7,2738.0,0.002]
[1769741074626,0.01459455,2739.5,2738.0,0.002]
[1769741074627,0.765,2738.6,2738.0,0.002]
[1769741075790,0.765,2739.1,2738.0,0.002]
[1769741077004,0.91274187,2739.0,2738.0,0.002]
[1769741077934,1.67773145,2739.1,2738.0,0.002]
[1769741078439,0.765,2739.1,2738.0,0.002]
[1769741078738,0.765,2739.1,2738.0,13.15651339]
[1769741079042,0.001,2739.8,2738.3,13.15451339]
[1769741079043,0.765,2739.6,2738.3,13.15451339]
[1769741081139,0.765,2739.6,2738.4,0.91294186]
[1769741081740,0.001,2738.8,2738.4,0.91294186]
[1769741081922,0.765,2739.6,2738.4,14.06745525]
[1769741082130,0.765,2739.6,2738.5,1.77192227]
[1769741082619,1.67754382,2739.6,2738.5,1.77192227]
[1769741083333,1.67754382,2739.6,2738.6,0.91287519]
[1769741083650,1.67754374,2739.6,2738.6,4.72287519]
[1769741085936,0.765,2739.6,2738.6,4.72287519]
[1769741086143,0.765,2739.6,2738.7,0.83745086]
[1769741086843,1.67754298,2739.6,2738.7,0.83745086]
[1769741087229,0.765,2739.6,2738.7,0.83745086]
[1769741087538,0.765,2739.6,2738.8,3.81]
[1769741088737,13.48492486,2739.6,2738.8,3.81]
[1769741088930,14.15966821,2739.5,2738.8,3.81]
[1769741089522,0.9126086,2739.4,2738.8,3.81]
[1769741091842,12.71992486,2739.3,2738.8,3.81]
[1769741092548,12.71992486,2739.3,2738.3,0.91296766]
[1769741092717,12.71992486,2739.3,2738.2,0.91499897]
[1769741092926,1.87226267,2739.3,2738.3,1.3696676]
[1769741093159,0.9126086,2739.4,2738.3,1.3696676]
[1769741093451,0.9126086,2739.4,2738.3,0.45671308]
[1769741093654,0.001,2739.3,2738.3,0.45671308]
[1769741094260,0.001,2739.3,2738.3,1.36968654]
[1769741094561,0.001,2739.3,2738.3,14.52419993]
[1769741094860,0.001,2739.3,2738.4,14.97233632]
[1769741096121,0.001,2739.3,2738.4,6.54074421]
[1769741096329,0.001,2739.3,2738.4,4.72292128]
[1769741100255,12.93565508,2739.3,2738.4,3.81]
[1769741100655,12.93565508,2739.3,2738.4,4.72294057]
[1769741100855,0.001,2739.3,2738.4,4.72294057]
[1769741101061,0.001,2739.3,2738.5,0.83748128]
[1769741101781,0.91259676,2739.5,2738.5,0.83748128]
[1769741101782,0.765,2739.6,2738.7,13.68726504]
[1769741101944,0.765,2739.6,2738.9,13.68726504]
[1769741103138,0.765,2739.6,2738.8,0.91280852]
[1769741104084,0.765,2739.6,2738.8,14.60007356]
[1769741104276,0.765,2739.6,2738.9,1.82513077]
[1769741105352,0.001,2740.1,2738.9,15.51239581]
[1769741105564,13.84666441,2741.2,2739.2,13.68726504]
[1769741105872,14.61166441,2741.2,2739.4,13.68726504]
[1769741106073,14.76062526,2741.1,2739.5,15.03363232]
[1769741107479,14.76062526,2741.1,2739.6,13.68726504]
[1769741107662,14.76062526,2741.1,2739.7,13.68726504]
[1769741108289,0.91207588,2741.0,2739.8,0.91247536]
[1769741108469,0.91007588,2741.0,2739.8,0.91247536]
[1769741108670,15.67268234,2741.1,2739.9,0.83748128]
[1769741108871,0.765,2741.2,2739.9,0.83748128]
[1769741108872,0.765,2741.2,2739.9,14.52474632]
[1769741109085,0.763,2741.2,2740.0,13.68726504]
[1769741109383,0.759,2741.2,2740.0,13.68726504]
[1769741109582,0.757,2741.2,2740.0,13.68726504]
[1769741109787,3.64620901,2742.6,2740.4,13.68726504]
[1769741109964,1.74870024,2742.5,2740.8,13.68726504]
[1769741110163,1.74670024,2742.5,2741.0,13.68726504]
[1769741110894,0.9115212,2742.7,2741.0,13.68726504]
[1769741111262,13.84617628,2742.7,2741.0,13.68726504]
[1769741112467,13.84617628,2742.7,2741.1,14.59930765]
[1769741112791,13.84617628,2742.7,2741.1,0.91204261]
[1769741112994,14.41607326,2742.7,2740.5,1.37018596]
[1769741113174,12.93465508,2742.4,2740.7,0.91216098]
[1769741113373,12.93465508,2742.4,2741.0,0.91205522]
[1769741114093,1.8062052,2742.6,2741.0,14.59932026]
[1769741114275,13.84617628,2742.7,2741.0,14.59932026]
[1769741114982,13.84617628,2742.7,2741.1,3.81]
[1769741116300,13.84617628,2742.7,2741.1,17.49726504]
[1769741116473,0.764,2742.9,2741.1,17.49726504]
[1769741116474,0.764,2742.9,2741.3,13.68726504]
[1769741116679,0.764,2742.9,2741.6,0.91187627]
[1769741116871,0.764,2742.9,2741.6,14.59914131]
[1769741117272,0.764,2742.9,2741.8,13.68726504]
[1769741117601,0.91107871,2744.0,2742.2,13.68726504]
[1769741117799,1.77883632,2743.9,2742.3,14.12105704]
[1769741118169,12.93465508,2745.2,2742.8,13.68726504]
[1769741118370,13.84546825,2744.8,2742.9,14.5]
[1769741118678,1.38454683,2744.7,2743.0,2.6163176]
[1769741119079,12.93465508,2744.3,2742.9,14.5]
[1769741119481,12.93465508,2744.3,2743.0,0.91140894]
[1769741120105,0.764,2744.2,2743.0,0.91140894]
[1769741120475,13.69865508,2744.3,2743.0,0.91140894]
[1769741120799,14.30452059,2744.2,2743.0,0.91140772]
[1769741120991,13.84570059,2744.1,2743.0,0.91140856]
[1769741122592,13.84570059,2744.1,2742.4,1.93622265]
[1769741122796,13.84570059,2744.1,2742.5,0.91155942]
[1769741123097,13.86029514,2744.1,2742.4,1.93622265]
[1769741123403,12.93465508,2743.9,2742.4,2.84783242]
[1769741123703,12.93465508,2743.9,2742.4,17.34783242]
[1769741123905,0.764,2743.8,2742.4,18.32103848]
[1769741124117,1.36986551,2744.2,2742.4,32.00830352]
[1769741124118,0.9110709,2744.1,2742.4,32.00830352]
[1769741124409,0.764,2743.9,2742.5,3.56693391]
[1769741124592,0.764,2743.9,2742.5,3.58152846]
[1769741124806,0.22809364,2744.0,2742.5,17.2687935]
[1769741125101,0.22809364,2744.0,2742.6,14.5]
[1769741125276,0.22809364,2744.0,2742.7,0.91151055]
[1769741125478,0.22809364,2744.0,2742.8,0.85336165]
[1769741125705,2.28088428,2744.2,2742.8,0.85336165]
[1769741125910,16.35095971,2744.2,2742.9,14.5]
[1769741127408,16.35095971,2744.2,2742.9,15.4114347]
[1769741127576,15.58695971,2744.2,2742.9,15.4114347]
[1769741127776,2.68708978,2744.1,2742.9,15.4114347]
[1769741128979,1.92308978,2744.1,2742.9,15.4114347]
[1769741129183,0.764,2744.3,2742.9,29.35837426]
[1769741130525,0.001,2744.0,2742.9,29.35837426]
[1769741130990,0.001,2744.0,2742.9,15.4114347]
[1769741131441,13.30707543,2744.0,2742.9,14.5]
[1769741131745,13.30707543,2744.0,2742.7,0.002]
[1769741131746,14.63678297,2743.9,2742.7,0.002]
[1769741133230,0.91114512,2743.8,2742.7,0.002]
[1769741133405,1.33070754,2743.9,2742.7,0.002]
[1769741133605,14.07007543,2743.8,2742.7,0.002]
[1769741134897,0.001,2744.0,2742.7,0.002]
[1769741135220,1.67608247,2744.0,2742.7,0.46945591]
[1769741135724,1.67608247,2744.0,2742.8,0.91147732]
[1769741135725,1.67608185,2744.0,2742.8,0.91147732]
[1769741136028,0.001,2744.0,2742.9,0.50268425]
[1769741136418,0.001,2744.0,2743.0,14.5]
[1769741136924,14.06643316,2744.0,2743.0,14.5]
[1769741137124,13.15535047,2744.0,2742.9,0.50268425]
[1769741137327,15.91388241,2744.0,2742.9,0.50268425]
[1769741137623,1.84845033,2744.0,2742.9,15.00268425]
[1769741137830,0.91208297,2744.0,2743.0,0.91141086]
[1769741138210,14.06643344,2744.0,2742.9,15.41141419]
[1769741139322,13.15435047,2743.9,2742.7,0.002]
[1769741139518,13.15435047,2743.8,2742.5,0.002]
[1769741139718,14.06556201,2743.6,2742.5,0.002]
[1769741139927,14.06556201,2743.6,2742.5,0.91357702]
[1769741140732,14.06556201,2743.6,2742.0,0.91172313]
[1769741140896,13.15435047,2743.4,2741.9,1.92481614]
[1769741141303,13.15435047,2743.3,2741.9,1.92481614]
[1769741141616,13.15435047,2743.1,2742.1,0.91170457]
[1769741141808,0.91141086,2743.0,2742.0,0.91174325]
[1769741143032,0.91141086,2743.0,2742.3,0.002]
[1769741143537,1.69963505,2743.2,2742.3,0.002]
[1769741143717,0.764,2743.1,2742.3,0.002]
[1769741144840,0.764,2743.1,2742.3,0.01659455]
[1769741145841,0.764,2743.1,2742.3,0.002]
[1769741146210,0.764,2743.1,2742.3,0.45803838]
[1769741146707,0.764,2743.1,2742.3,14.95803838]
[1769741148143,0.764,2743.1,2742.4,0.91161026]
[1769741148355,14.06554555,2743.7,2742.5,3.81]
[1769741148642,0.764,2743.3,2742.6,3.81]
[1769741149506,13.91835047,2743.3,2742.4,6.67323103]
[1769741149707,13.91835047,2743.3,2742.4,3.81]
[1769741150113,14.06569488,2743.2,2742.4,3.81]
[1769741150910,13.15435047,2743.1,2742.4,3.81]
[1769741151117,13.15435047,2743.1,2742.3,0.002]
[1769741152043,0.91141086,2743.0,2742.3,0.002]
[1769741152247,1.40657613,2742.9,2742.3,0.002]
[1769741152426,0.91135939,2743.2,2742.3,0.002]
[1769741155242,0.764,2743.1,2742.3,0.002]
[1769741155544,13.15435047,2743.0,2742.0,0.002]
[1769741155720,15.22158385,2742.9,2742.0,0.002]
[1769741157049,0.764,2742.8,2742.0,0.002]
[1769741157468,14.5937488,2742.8,2742.0,0.002]
[1769741159146,0.91151055,2742.7,2742.0,0.002]
[1769741159317,0.764,2742.6,2742.0,0.002]
[1769741159723,14.5937488,2742.6,2742.0,0.002]
[1769741161462,13.8297488,2742.3,2741.1,0.91201129]
[1769741161675,13.8297488,2742.2,2741.0,0.91405266]
[1769741161954,13.8297488,2742.2,2741.0,14.502]
[1769741162167,0.91157702,2742.5,2741.0,0.002]
[1769741162168,13.8297488,2742.0,2741.0,0.002]
[1769741162666,13.8297488,2741.7,2741.0,0.002]
[1769741162877,13.8297488,2741.6,2740.9,0.62076004]
[1769741163027,14.5937488,2741.5,2740.1,0.91235326]
[1769741163220,13.8297488,2741.2,2740.1,0.91237432]
[1769741163457,14.74179141,2741.1,2739.9,0.91442615]
[1769741163669,19.51074498,2741.0,2739.9,0.002]
[1769741163877,17.6717488,2740.8,2739.9,0.002]
[1769741164408,1.83899618,2741.0,2739.9,14.61651266]
[1769741164658,0.764,2741.0,2740.1,13.71668889]
[1769741164829,0.9117765,2741.9,2740.3,13.71668889]
[1769741165161,0.764,2741.8,2740.5,13.71668889]
[1769741165331,5.5178318,2741.8,2740.6,0.912209]
[1769741165525,5.5178318,2741.8,2740.5,3.64883602]
[1769741165526,13.8297488,2741.7,2740.5,0.9122235]
[1769741165757,13.8297488,2741.4,2739.9,0.002]
[1769741166259,13.8297488,2741.4,2740.1,0.91237079]
[1769741166463,13.8297488,2741.4,2740.0,0.91239027]